fUSD/lending_fUSD_20250906
["ID","MTS","AMOUNT","RATE_DAILY","PERIOD"]
[383798955,1757119857435,-400.0,0.00040923,10]
[383798956,1757119857445,-400.0,0.00040923,10]
[383798957,1757119857455,-400.0,0.00040923,10]
[383798958,1757119857465,-400.0,0.00040923,10]
[383798959,1757119857475,-400.0,0.00040923,10]
[383798960,1757119857484,-400.0,0.00040923,10]
[383798961,1757119857494,-400.0,0.00040923,10]
[383798962,1757119857503,-400.0,0.00040923,10]
[383798963,1757119857513,-400.0,0.00040923,10]
[383798964,1757119857522,-255.93,0.00040923,10]
[383798965,1757119857631,-485.9,0.00040923,10]
[383798966,1757119857642,-400.0,0.00040923,10]
[383798967,1757119857652,-400.0,0.00040923,10]
[383798968,1757119857661,-522.19,0.00040923,10]
[383798969,1757119857671,-400.0,0.00040923,10]
[383798970,1757119857681,-401.55,0.00040923,10]
[383798971,1757119857691,-301.95,0.00040923,10]
[383798972,1757119857699,-400.0,0.00040923,10]
[383798973,1757119857709,-400.0,0.00040923,10]
[383798974,1757119857719,-173.88,0.00040923,10]
[383798975,1757119857728,-400.0,0.00040923,10]
[383798976,1757119857738,-400.0,0.00040923,10]
[383798977,1757119857748,-400.0,0.00040923,10]
[383798978,1757119857758,-400.0,0.00040923,10]
[383798979,1757119857769,-400.0,0.00040923,10]
[383798980,1757119857779,-400.0,0.00041197,120]
[383798981,1757119857789,-400.0,0.00041197,120]
[383798982,1757119857798,-400.0,0.00041197,120]
[383798983,1757119857808,-167.84171899,0.00041197,120]
[383798984,1757119857818,-400.0,0.00041197,120]
[383798985,1757119857828,-400.0,0.00041197,5]
[383798986,1757119857838,-400.0,0.00041197,120]
[383798987,1757119857848,-400.0,0.00041197,118]
[383798988,1757119857857,-466.02,0.00041197,120]
[383798989,1757119857867,-400.0,0.00041197,120]
[383798990,1757119857877,-400.0,0.00041197,120]
[383798991,1757119857886,-400.0,0.00041197,120]
[383798992,1757119857896,-400.0,0.00041197,120]
[383798993,1757119857905,-400.0,0.00041197,120]
[383798994,1757119857915,-400.0,0.00041197,120]
[383798995,1757119857925,-400.0,0.00041197,120]
[383798996,1757119857935,-400.0,0.00041197,120]
[383798997,1757119857946,-400.0,0.00041197,120]
[383798998,1757119857956,-400.0,0.00041197,120]
[383798999,1757119857965,-401.55,0.00041197,120]
[383799000,1757119857976,-456.21878413,0.00041197,120]
[383799001,1757119857986,-400.0,0.00041197,120]
[383799002,1757119857997,-212.54,0.00041197,120]
[383799003,1757119858007,-400.0,0.00041197,120]
[383799004,1757119858018,-400.0,0.00041197,120]
[383799005,1757119858029,-400.0,0.00041197,120]
[383799006,1757119858039,-400.0,0.00041197,120]
[383799007,1757119858049,-223.88,0.00041222,2]
[383799008,1757119858058,-633.86607672,0.00041461,3]
[383799009,1757119858069,-150.57015412,0.00041461,7]
[383799010,1757119858078,-400.0,0.00041471,120]
[383799011,1757119858088,-414.99915233,0.00041471,120]
[383799012,1757119858098,-505.68554261,0.00041471,120]
[383799013,1757119858108,-400.0,0.00041471,120]
[383799014,1757119858117,-400.0,0.00041471,5]
[383799015,1757119858127,-258.93,0.00041471,120]
[383799016,1757119858137,-400.0,0.00041471,118]
[383799017,1757119858146,-400.0,0.00041471,120]
[383799018,1757119858156,-400.0,0.00041471,120]
[383799019,1757119858166,-400.0,0.00041471,120]
[383799020,1757119858176,-400.0,0.00041471,120]
[383799021,1757119858185,-514.96248,0.00041471,120]
[383799022,1757119858195,-400.0,0.00041471,120]
[383799023,1757119858205,-151.52,0.00041471,120]
[383799024,1757119858214,-356.82,0.00041471,120]
[383799025,1757119858224,-400.0,0.00041471,120]
[383799026,1757119858235,-400.0,0.00041471,120]
[383799027,1757119858245,-401.55,0.00041471,120]
[383799028,1757119858255,-400.0,0.00041471,120]
[383799029,1757119858267,-400.0,0.00041471,120]
[383799030,1757119858279,-400.0,0.00041471,120]
[383799031,1757119858289,-400.0,0.00041471,120]
[383799032,1757119858298,-400.0,0.00041471,120]
[383799033,1757119858308,-250.0,0.0004155,120]
[383799034,1757119858319,-163.38,0.00041736,2]
[383799035,1757119858328,-466.46,0.00041745,120]
[383799036,1757119858337,-400.0,0.00041745,120]
[383799037,1757119858349,-400.0,0.00041745,5]
[383799038,1757119858359,-353.35696588,0.00041745,118]
[383799039,1757119858369,-400.0,0.00041745,120]
[383799040,1757119858379,-400.0,0.00041745,120]
[383799041,1757119858389,-400.0,0.00041745,120]
[383799042,1757119858399,-400.0,0.00041745,120]
[383799043,1757119858408,-400.0,0.00041745,120]
[383799044,1757119858417,-400.0,0.00041745,120]
[383799045,1757119858427,-400.0,0.00041745,120]
[383799046,1757119858437,-401.55,0.00041745,120]
[383799047,1757119858447,-400.0,0.00041745,120]
[383799048,1757119858457,-400.0,0.00041745,120]
[383799049,1757119858468,-400.0,0.00041745,120]
[383799050,1757119858487,-400.0,0.00041745,120]
[383799051,1757119858503,-400.0,0.00041745,120]
[383799052,1757119858518,-400.0,0.00042019,120]
[383799053,1757119858534,-400.0,0.00042019,5]
[383799054,1757119858552,-400.0,0.00042019,120]
[383799055,1757119858566,-400.0,0.00042019,120]
[383799056,1757119858578,-400.0,0.00042019,120]
[383799057,1757119858593,-400.0,0.00042019,120]
[383799058,1757119858610,-400.0,0.00042019,120]
[383799059,1757119858628,-400.0,0.00042019,120]
[383799060,1757119858643,-400.0,0.00042019,120]
[383799061,1757119858659,-401.55,0.00042019,120]
[383799062,1757119858675,-400.0,0.00042019,120]
[383799063,1757119858691,-400.0,0.00042019,120]
[383799064,1757119858706,-400.0,0.00042019,120]
[383799065,1757119858722,-400.0,0.00042019,120]
[383799066,1757119858740,-400.0,0.00042019,120]
[383799067,1757119858755,-238.31090032,0.00042279,18]
[383799068,1757119858767,-400.0,0.00042293,5]
[383799069,1757119858780,-400.0,0.00042293,120]
[383799070,1757119858799,-400.0,0.00042293,120]
[383799071,1757119858810,-400.0,0.00042293,120]
[383799072,1757119858822,-400.0,0.00042293,120]
[383799073,1757119858837,-400.0,0.00042293,120]
[383799074,1757119858851,-400.0,0.00042293,120]
[383799075,1757119858863,-492.92,0.00042293,120]
[383799076,1757119858876,-401.55,0.00042293,120]
[383799077,1757119858890,-385.67,0.00042293,120]
[383799078,1757119858903,-400.0,0.00042293,120]
[383799079,1757119858917,-400.0,0.00042293,120]
[383799080,1757119858930,-400.0,0.00042293,120]
[383799081,1757119858943,-441.24,0.00042293,120]
[383799082,1757119858957,-400.0,0.00042567,5]
[383799083,1757119858971,-400.0,0.00042567,120]
[383799084,1757119858983,-400.0,0.00042567,120]
[383799085,1757119858996,-400.0,0.00042567,120]
[383799086,1757119859009,-400.0,0.00042567,120]
[383799087,1757119859021,-304.97,0.00042567,120]
[383799088,1757119859034,-400.0,0.00042567,120]
[383799089,1757119859048,-401.55,0.00042567,120]
[383799090,1757119859062,-400.0,0.00042567,120]
[383799091,1757119859075,-400.0,0.00042567,120]
[383799092,1757119859088,-400.0,0.00042567,120]
[383799093,1757119859101,-9257.11,0.00042707,2]
[383799094,1757119859115,-1854.12,0.00042707,2]
[383799095,1757119859128,-1718.16,0.00042707,2]
[383799096,1757119859142,-150.99,0.00042707,2]
[383799097,1757119859155,-1155.05,0.00042707,2]
[383799098,1757119859167,-1436.3,0.00042707,2]
[383799099,1757119859181,-9999.99,0.00042707,2]
[383799100,1757119859194,-37532.63,0.00042707,2]
[383799101,1757119859208,-9999.99,0.00042707,2]
[383799102,1757119859221,-499.99,0.00042707,2]
[383799103,1757119859233,-303.51,0.00042707,2]
[383799104,1757119859247,-621.15,0.000428,14]
[383799105,1757119859260,-400.0,0.00042841,5]
[383799106,1757119859276,-449.0,0.00042841,120]
[383799107,1757119859290,-400.0,0.00042841,120]
[383799108,1757119859303,-400.0,0.00042841,120]
[383799109,1757119859318,-400.0,0.00042841,120]
[383799110,1757119859331,-400.0,0.00042841,120]
[383799111,1757119859346,-401.55,0.00042841,120]
[383799112,1757119859360,-400.0,0.00042841,120]
[383799113,1757119859376,-400.0,0.00042841,120]
[383799114,1757119859393,-400.0,0.00042841,120]
[383799115,1757119859403,-6610.19016591,0.00042973,15]
[383799116,1757119859413,-223.88,0.00043095,2]
[383799117,1757119859423,-223.9,0.00043115,5]
[383799118,1757119859435,-400.0,0.00043115,120]
[383799119,1757119859446,-400.0,0.00043115,120]
[383799120,1757119859458,-400.0,0.00043115,120]
[383799121,1757119859468,-298.23,0.00043115,120]
[383799122,1757119859478,-401.55,0.00043115,120]
[383799123,1757119859488,-400.0,0.00043115,120]
[383799124,1757119859498,-400.0,0.00043115,120]
[383799125,1757119859508,-299.34,0.00043115,120]
[383799126,1757119859518,-154.18,0.000432,30]
[383799127,1757119859527,-263.00438454,0.00043389,120]
[383799128,1757119859537,-400.0,0.00043389,120]
[383799129,1757119859547,-401.55,0.00043389,120]
[383799130,1757119859557,-172.24714168,0.00043389,120]
[383799131,1757119859567,-400.0,0.00043389,120]
[383799132,1757119859577,-500.0,0.00043428,30]
[383799133,1757119859586,-162.0,0.000435,120]
[383799134,1757119859777,-400.0,0.00043663,120]
[383799135,1757119859815,-401.55,0.00043663,120]
[383799136,1757119859829,-400.0,0.00043663,120]
[383799137,1757119859839,-500.0,0.00043835,120]
[383799138,1757119859849,-500.0,0.00043835,120]
[383799139,1757119859858,-500.0,0.00043835,120]
[383799140,1757119859873,-500.0,0.00043835,120]
[383799141,1757119859893,-500.0,0.00043835,120]
[383799142,1757119859911,-500.0,0.00043835,120]
[383799143,1757119859925,-500.0,0.00043835,120]
[383799144,1757119859934,-500.0,0.00043835,120]
[383799145,1757119859944,-500.0,0.00043835,120]
[383799146,1757119859954,-262.51092485,0.00043835,120]
[383799147,1757119859964,-400.0,0.00043835,10]
[383799148,1757119859975,-400.0,0.00043835,10]
[383799149,1757119859986,-400.0,0.00043937,120]
[383799150,1757119859997,-401.55,0.00043937,120]
[383799151,1757119860006,-400.0,0.00043937,120]
[383799152,1757119860016,-400.0,0.00044211,120]
[383799153,1757119860026,-401.55,0.00044211,120]
[383799154,1757119860036,-481.33,0.00044211,120]
[383799155,1757119860047,-263.87426024,0.00044485,120]
[383799156,1757119860057,-401.61322854,0.00044485,120]
[383799157,1757119860067,-163.38,0.00044518,2]
[383799158,1757119860288,-223.88,0.00044969,2]
[383799159,1757119860298,-2375.87,0.00045,120]
[383799160,1757119860310,-150.0,0.0004537,120]
[383799161,1757119860319,-152.12,0.00045395,120]
[383799162,1757119860329,-238.31090032,0.00045652,23]
[383799163,1757119860341,-161.79,0.00045752,30]
[383799164,1757119860350,-469.39,0.00045752,30]
[383799165,1757119860360,-801.77,0.00045752,30]
[383799166,1757119860371,-801.77,0.00045752,30]
[383799167,1757119860380,-429.53,0.00045752,30]
[383799168,1757119860391,-657.19,0.000459,7]
[383799169,1757119860401,-165.52,0.00046805,2]
[383799170,1757119860411,-163.38,0.00047301,2]
[383799171,1757119860421,-621.15,0.000474,14]
[383799172,1757119860430,-6610.19016591,0.00047589,15]
[383799173,1757119860440,-500.0,0.00047741,30]
[383799174,1757119860450,-500.0,0.000488,2]
[383799175,1757119860459,-162.0,0.000491,120]
[383799176,1757119860469,-2375.87,0.0005,120]
[383799177,1757119860478,-163.38,0.00050083,2]
[383799178,1757119860487,-155.04,0.00050685,2]
[383799179,1757119860497,-154.18,0.000521,30]
[383799180,1757119860507,-6610.19016591,0.00052205,15]
[383799181,1757119860517,-500.0,0.00052599,60]
[383799182,1757119860528,-500.0,0.00052616,60]
[383799183,1757119860537,-163.38,0.00052865,2]
[383799184,1757119860548,-152.12,0.00053003,120]
[383799185,1757119860557,-500.0,0.00053933,60]
[383799186,1757119860567,-621.93,0.00053934,2]
[383799187,1757119860576,-500.0,0.00053967,60]
[383799188,1757119860586,-391.0,0.000542,2]
[383799189,1757119860595,-162.0,0.000546,120]
[383799190,1757119860605,-872.7559828,0.00055,120]
[383799191,1757119860614,-2375.87,0.00055,120]
[383799192,1757119860624,-500.0,0.0005517,120]
[383799193,1757119860633,-163.38,0.00055648,2]
[383799194,1757119860643,-242.503,0.00056063,107]
[383799195,1757119860653,-621.15,0.000567,60]
[383799196,1757119860663,-6610.19016591,0.00056821,15]
[383799197,1757119860672,-200.0,0.00056914,2]
[383799198,1757119860682,-547.66,0.000573,14]
[383799199,1757119860691,-2017.69,0.00058122,2]
[383799200,1757119860701,-150.0,0.00058135,120]
[383799201,1757119860711,-171.0,0.000583,120]
[383799202,1757119860721,-300.0,0.00058358,120]
[383799203,1757119860731,-290.53,0.00058556,14]
[383799204,1757119860741,-500.0,0.00058698,120]
[383799205,1757119860750,-391.20919981,0.000597,30]
[383799206,1757119860760,-500.0,0.00059999,120]
[383799207,1757119860771,-162.0,0.000602,120]
[383799208,1757119860781,-500.0,0.00060273,120]
[383799209,1757119860792,-500.0,0.00060547,120]
[383799210,1757119860802,-152.12,0.0006061,120]
[383799211,1757119860812,-500.0,0.00060821,120]
[383799212,1757119860822,-500.0,0.00061095,120]
[383799213,1757119860833,-500.0,0.00061369,120]
[383799214,1757119860844,-154.18,0.000614,60]
[383799215,1757119860855,-6610.19016591,0.00061436,15]
[383799216,1757119860865,-500.0,0.00061643,120]
[383799217,1757119860875,-500.0,0.00061917,120]
[383799218,1757119860884,-487.49827259,0.00062191,120]
[383799219,1757119860894,-155.04,0.00063014,2]
[383799220,1757119860904,-1819.12,0.00064016,30]
[383799221,1757119860914,-5000.0,0.00064034,30]
[383799222,1757119860924,-5000.0,0.00064034,30]
[383799223,1757119860934,-2788.07,0.00064073,30]
[383799224,1757119860943,-2319.45,0.00064083,30]
[383799225,1757119860953,-598.8,0.0006426,30]
[383799226,1757119860963,-25000.0,0.00064262,30]
[383799227,1757119860972,-18486.02,0.00064343,30]
[383799228,1757119860981,-2473.51,0.00064373,30]
[383799229,1757119860997,-5000.0,0.00064424,30]
[383799230,1757119861009,-5000.0,0.00064434,30]
[383799231,1757119861019,-5000.0,0.00064436,30]
[383799232,1757119861028,-2562.7,0.00064499,30]
[383799233,1757119861038,-3553.38881607,0.000645,120]
[383799234,1757119861047,-5000.0,0.00064503,30]
[383799235,1757119861057,-817.41,0.00064535,30]
[383799236,1757119861067,-2562.7,0.00064559,30]
[383799237,1757119861077,-5000.0,0.00064582,30]
[383799238,1757119861086,-5000.0,0.00064632,30]
[383799239,1757119861096,-25000.0,0.00064678,30]
[383799240,1757119861106,-5000.0,0.0006468,30]
[383799241,1757119861116,-25000.0,0.00064705,30]
[383799242,1757119861126,-5000.0,0.00064761,30]
[383799243,1757119861136,-5000.0,0.00064774,30]
[383799244,1757119861146,-2363.5,0.00064829,30]
[383799245,1757119861156,-5000.0,0.00064839,30]
[383799246,1757119861165,-1696.43,0.00064845,30]
[383799247,1757119861176,-1033.24,0.00064856,30]
[383799248,1757119861185,-5000.0,0.00064881,30]
[383799249,1757119861194,-2126.0,0.00064904,30]
[383799250,1757119861204,-672.47,0.00064914,30]
[383799251,1757119861214,-2069.98,0.00064919,30]
[383799252,1757119861225,-5000.0,0.00064943,30]
[383799253,1757119861235,-5000.0,0.0006495,30]
[383799254,1757119861244,-5000.0,0.00064953,30]
[383799255,1757119861254,-175.59,0.00064962,30]
[383799256,1757119861264,-500.0,0.0006504,120]
[383799257,1757119861277,-687.6255987,0.00065142,120]
[383799258,1757119861287,-900.0,0.00065645,120]
[383799259,1757119861297,-162.0,0.000657,120]
[383799260,1757119861306,-1315.9,0.00065753,120]
[383799261,1757119861316,-6610.19016591,0.00066052,15]
[383799262,1757119861325,-782.44095414,0.00066586,120]
[383799263,1757119861335,-168.98,0.00067176,2]
[383799264,1757119861347,-1315.9,0.00067613,120]
[383799265,1757119861357,-813.39598937,0.00067667,120]
[383799266,1757119861367,-152.12,0.00068217,120]
[383799267,1757119861376,-4000.0,0.000685,120]
[383799268,1757119861386,-400.0,0.000685,120]
[383799269,1757119861395,-400.0,0.000685,120]
[383799270,1757119861405,-1315.9,0.00069473,120]
[383799271,1757119861414,-2000.0,0.0007,120]
[383799272,1757119861425,-300.0,0.0007,120]
[383799273,1757119861434,-2000.0,0.000703,120]
[383799274,1757119861444,-6610.19016591,0.00070668,15]
[383799275,1757119861454,-162.0,0.000713,120]
[383799276,1757119861463,-1315.9,0.00071333,120]
[383799277,1757119861473,-150.0,0.00072,120]
[383799278,1757119861482,-150.0,0.00072,120]
[383799279,1757119861492,-2375.87,0.000722,120]
[383799280,1757119861502,-500.0,0.00072545,120]
[383799281,1757119861512,-774.1,0.00073194,120]
[383799282,1757119861521,-1258.0,0.00073329,120]
[383799283,1757119861531,-925.0,0.00073329,120]
[383799284,1757119861540,-3382.0,0.00073329,120]
[383799285,1757119861551,-2035.0,0.00073329,120]
[383799286,1757119861561,-1577.0,0.00073329,120]
[383799287,1757119861571,-1300.0,0.00073329,120]
[383799288,1757119861580,-600.0,0.00073329,120]
[383799289,1757119861590,-567.0,0.00073329,120]
[383799290,1757119861600,-811.0,0.00073329,2]
[383799291,1757119861610,-6164.0,0.00073329,120]
[383799292,1757119861620,-150.0,0.00073329,2]
[383799293,1757119861629,-150.0,0.00073329,2]
[383799294,1757119861639,-4163.0,0.00073329,120]
[383799295,1757119861650,-792.978,0.00073329,2]
[383799296,1757119861659,-1101.0,0.00074,120]
[383799297,1757119861669,-242.503,0.00074042,120]
[383799298,1757119861679,-166666.0,0.000745,120]
[383799299,1757119861688,-8000.0,0.000745,120]
[383799300,1757119861698,-3053.0,0.00074621,120]
[383799301,1757119861708,-341.9,0.00075,90]
[383799302,1757119861717,-1999.99,0.00075,90]
[383799303,1757119861727,-2000.01,0.00075,90]
[383799304,1757119861737,-991.32403519,0.00075094,120]
[383799305,1757119861748,-6610.19016591,0.00075284,15]
[383799306,1757119861758,-155.04,0.00075342,120]
[383799307,1757119861768,-152.12,0.00075825,120]
[383799308,1757119861778,-923.0,0.00076329,120]
[383799309,1757119861788,-2035.0,0.00076329,120]
[383799310,1757119861798,-1577.0,0.00076329,120]
[383799311,1757119861807,-1300.0,0.00076329,120]
[383799312,1757119861817,-600.0,0.00076329,120]
[383799313,1757119861827,-567.0,0.00076329,120]
[383799314,1757119861836,-811.0,0.00076329,2]
[383799315,1757119861847,-6160.0,0.00076329,120]
[383799316,1757119861857,-4163.0,0.00076329,120]
[383799317,1757119861867,-162.0,0.000768,120]
[383799318,1757119861877,-8747.0,0.00077233,120]
[383799319,1757119861887,-6683.0,0.00077233,120]
[383799320,1757119861896,-1101.0,0.000777,120]
[383799321,1757119861905,-212.63008182,0.00077759,2]
[383799322,1757119861915,-3008.28976052,0.00078124,2]
[383799323,1757119861925,-621.15,0.000782,60]
[383799324,1757119861935,-171.0,0.000787,120]
[383799325,1757119861945,-150.0,0.00078712,120]
[383799326,1757119861955,-150.0,0.00078775,120]
[383799327,1757119861965,-5000.0,0.00079,120]
[383799328,1757119861975,-537.0,0.00079,120]
[383799329,1757119861985,-923.0,0.00079329,120]
[383799330,1757119861995,-2032.0,0.00079329,120]
[383799331,1757119862005,-2875.0,0.00079329,120]
[383799332,1757119862015,-591.3282963,0.00079633,2]
[383799333,1757119862025,-4631.4221305,0.00079797,9]
[383799334,1757119862035,-4693.1879926,0.00079797,9]
[383799335,1757119862046,-6610.19016591,0.000799,15]
[383799336,1757119862056,-151.0,0.000799,120]
[383799337,1757119862066,-151.0,0.000799,120]
[383799338,1757119862076,-349.25521688,0.000799,2]
[383799339,1757119862086,-692.85978172,0.000799,2]
[383799340,1757119862096,-2271.0457815,0.000799,30]
[383799341,1757119862106,-188.29771104,0.000799,120]
[383799342,1757119862116,-5285.17404026,0.000799,2]
[383799343,1757119862126,-172.6797974,0.000799,17]
[383799344,1757119862136,-500.0,0.00079989,120]
[383799345,1757119862146,-500.0,0.00079989,120]
[383799346,1757119862156,-500.0,0.00079989,120]
[383799347,1757119862167,-500.0,0.00079999,120]
[383799348,1757119862177,-500.0,0.00079999,120]
[383799349,1757119862187,-176.42544333,0.00079999,120]
[383799350,1757119862197,-429.1065905,0.00079999,120]
[383799351,1757119862207,-151.0,0.00079999,120]
[383799352,1757119862218,-160.0,0.00079999,120]
[383799353,1757119862230,-151.0,0.00079999,120]
[383799354,1757119862241,-300.0,0.00079999,120]
[383799355,1757119862251,-156.587,0.00079999,120]
[383799356,1757119862261,-151.0,0.00079999,120]
[383799357,1757119862275,-160.0,0.00079999,120]
[383799358,1757119862285,-151.0,0.00079999,120]
[383799359,1757119862295,-311.1,0.00079999,120]
[383799360,1757119862304,-162.380719,0.00079999,120]
[383799361,1757119862314,-151.0,0.00079999,120]
[383799362,1757119862324,-160.0,0.00079999,120]
[383799363,1757119862334,-234.80372309,0.00079999,120]
[383799364,1757119862345,-151.0,0.00079999,120]
[383799365,1757119862354,-160.0,0.00079999,120]
[383799366,1757119862364,-250.0,0.00079999,120]
[383799367,1757119862374,-151.0,0.00079999,120]
[383799368,1757119862384,-500.0,0.00079999,120]
[383799369,1757119862394,-600.0,0.00079999,120]
[383799370,1757119862403,-250.0,0.00079999,120]
[383799371,1757119862413,-500.0,0.00079999,120]
[383799372,1757119862423,-500.0,0.00079999,120]
[383799373,1757119862433,-600.0,0.00079999,120]
[383799374,1757119862443,-250.0,0.00079999,120]
[383799375,1757119862453,-500.0,0.00079999,120]
[383799376,1757119862463,-500.0,0.00079999,120]
[383799377,1757119862473,-600.0,0.00079999,120]
[383799378,1757119862483,-250.0,0.00079999,120]
[383799379,1757119862493,-293.95211652,0.00079999,120]
[383799380,1757119862503,-500.0,0.00079999,120]
[383799381,1757119862512,-600.0,0.00079999,120]
[383799382,1757119862522,-520.0,0.00079999,120]
[383799383,1757119862531,-250.0,0.00079999,120]
[383799384,1757119862541,-539.24000001,0.00079999,120]
[383799385,1757119862552,-250.0,0.00079999,120]
[383799386,1757119862563,-500.0,0.00079999,120]
[383799387,1757119862572,-500.0,0.00079999,120]
[383799388,1757119862581,-250.0,0.00079999,120]
[383799389,1757119862591,-500.0,0.00079999,120]
[383799390,1757119862600,-500.0,0.00079999,120]
[383799391,1757119862609,-250.0,0.00079999,120]
[383799392,1757119862619,-500.0,0.00079999,120]
[383799393,1757119862629,-500.0,0.00079999,120]
[383799394,1757119862639,-500.0,0.00079999,120]
[383799395,1757119862648,-500.0,0.00079999,120]
[383799396,1757119862658,-250.0,0.00079999,120]
[383799397,1757119862668,-200.0,0.00079999,120]
[383799398,1757119862677,-500.0,0.00079999,120]
[383799399,1757119862687,-500.0,0.00079999,120]
[383799400,1757119862696,-250.0,0.00079999,120]
[383799401,1757119862706,-207.4,0.00079999,120]
[383799402,1757119862715,-500.0,0.00079999,120]
[383799403,1757119862726,-215.0738,0.00079999,120]
[383799404,1757119862736,-250.0,0.00079999,120]
[383799405,1757119862746,-500.0,0.00079999,120]
[383799406,1757119862755,-223.0315306,0.00079999,120]
[383799407,1757119862765,-284.5214761,0.00079999,120]
[383799408,1757119862775,-500.0,0.00079999,120]
[383799409,1757119862784,-231.28369723,0.00079999,120]
[383799410,1757119862794,-500.0,0.00079999,120]
[383799411,1757119862804,-239.84119403,0.00079999,120]
[383799412,1757119862814,-151.0,0.00079999,120]
[383799413,1757119862824,-500.0,0.00079999,120]
[383799414,1757119862834,-250.0,0.00079999,120]
[383799415,1757119862845,-248.71531821,0.00079999,120]
[383799416,1757119862855,-500.0,0.00079999,120]
[383799417,1757119862864,-151.0,0.00079999,120]
[383799418,1757119862874,-257.91778498,0.00079999,120]
[383799419,1757119862883,-250.0,0.00079999,120]
[383799420,1757119862893,-151.0,0.00079999,120]
[383799421,1757119862903,-151.0,0.00079999,120]
[383799422,1757119862912,-267.46074303,0.00079999,120]
[383799423,1757119862922,-250.0,0.00079999,120]
[383799424,1757119862932,-151.0,0.00079999,120]
[383799425,1757119862943,-151.0,0.00079999,120]
[383799426,1757119862952,-277.35679052,0.00079999,120]
[383799427,1757119862962,-250.0,0.00079999,120]
[383799428,1757119862972,-151.0,0.00079999,120]
[383799429,1757119862982,-287.61899177,0.00079999,120]
[383799430,1757119862992,-151.0,0.00079999,120]
[383799431,1757119863002,-6521.44045023,0.00079999,120]
[383799432,1757119863011,-298.26089446,0.00079999,120]
[383799433,1757119863021,-151.0,0.00079999,120]
[383799434,1757119863031,-309.29654756,0.00079999,120]
[383799435,1757119863043,-151.0,0.00079999,120]
[383799436,1757119863054,-320.74051982,0.00079999,120]
[383799437,1757119863064,-151.0,0.00079999,120]
[383799438,1757119863074,-332.60791905,0.00079999,120]
[383799439,1757119863084,-344.91441206,0.00079999,120]
[383799440,1757119863094,-357.6762453,0.00079999,120]
[383799441,1757119863105,-250.0,0.00079999,120]
[383799442,1757119863115,-370.91026638,0.00079999,120]
[383799443,1757119863126,-151.0,0.00079999,120]
[383799444,1757119863135,-250.0,0.00079999,120]
[383799445,1757119863145,-384.63394623,0.00079999,120]
[383799446,1757119863155,-151.0,0.00079999,120]
[383799447,1757119863165,-250.0,0.00079999,120]
[383799448,1757119863175,-398.86540225,0.00079999,120]
[383799449,1757119863186,-151.0,0.00079999,120]
[383799450,1757119863197,-151.0,0.00079999,120]
[383799451,1757119863207,-151.0,0.00079999,120]
[383799452,1757119863218,-151.0,0.00079999,120]
[383799453,1757119863229,-500.0,0.00079999,120]
[383799454,1757119863239,-500.0,0.00079999,120]